{"text_format":"1","workbook":"xlsx","n_sheets":3,"sheets":["はじめに（操作手順）","表紙","県内"],"not_rendered":{"charts":0,"images":21,"macros":1,"external_links":0,"defined_names":3,"comments":0,"pivot_tables":0},"unopened":[],"bounds":{"document_bytes":16777216,"sheet_cells":100000,"rows_first":2000,"rows_last":500,"rows_between":2000,"halvings":0,"cell_chars":16384,"cell_head_chars":4096},"cells_cut":0,"cells_raw":0,"read":"whole","date_system":"1900"}

{"sheet":"はじめに（操作手順）","index":0,"n_rows":504,"n_cols":28,"rows_kept":504,"cut":false,"hidden":false,"merged":[[0,0,0,4],[4,10,5,18]]}
["Excel利用時の注意事項【重要】"]
[null,"MicrosoftのExcelのみで利用してください。"]
[null,"MicrosoftのExcel以外の互換ソフトで利用するとプログラム（マクロ）やその他機能が正常に動作しません。"]
[]
["当ファイルを開いた時の留意事項",null,null,null,null,null,null,null,null,null,"以下のセキュリティ リスクのメッセージが出た場合、一旦ファイルを閉じて右の図のように対応する。"]
[null,"下記の「コンテンツの有効化」が表示されたらクリックして下さい。",null,null,null,null,null,null,null,null,null,null,null,null,null,null,null,null,null,null,"該当のEXCELファイルを右クリックしてプロパティを選択する。",null,null,null,null,null,null,"プロパティの画面が出力したら、セキュリティの「許可する」にチェックして、OKボタンを押下する。"]
[]
[]
[]
[]
[]
[]
[]
[]
[]
[null,"「コンテンツの有効化」をクリックした後に下記の画面が表示されたら「はい」をクリックして下さい。"]
[]
[]
[]
[]
[]
[]
[]
[]
[]
[]
[]
[]
[]
[]
["手順の概要"]
[null,"手順の概要を以下に示します。（詳細は、下記手順内容を参照願います）"]
[null,null,"手順１","「県内」シートで必要な入力を行います。"]
[null,null,"手順２","「表紙」シートで「項目チェック及び申請」ボタンをクリックし、入力内容が正しいかチェックします。"]
[null,null,"手順３","手順２のチェックの結果、エラーがあった場合は、エラーに該当する項目を修正します。"]
[null,null,"手順４","「提出書類」に表示された必要資料を準備し、確認を行います。"]
[null,null,"手順５","手順２のチェックの結果、判定が青色で「可能」と表示されていることを確認します。"]
[null,null,"手順６","「表紙」シートと「県内」シートを印刷します。"]
[null,null,"手順７","手順６で印刷した印刷物をホチキスでとめて、他の送付書類とともに受付センターに書留で郵送します。　※詳細は、手引き「11.綴り方」を参照"]
[null,null,null,null,null,null,null,null,null,null,null,null,null,null,null,null,null,null,null,null,null,null,null,null,null,null,null,"※デスクトップ以外のフォルダに移動すると、有効ではなくなる場合があるので"]
[null,null,"注１","「県内」「表紙」の記入においてエラーを解消する入力ができない場合は、県ホームページ掲載のFAQを参照願います。",null,null,null,null,null,null,null,null,null,null,null,null,null,null,null,null,null,null,null,null,null,null,null,"　デスクトップ上で行ってください。"]
[null,null,null,"FAQを確認しても解消方法がわからない場合は、県共同受付センターへ問い合わせ願います。"]
[null,null,null,"【ＦＡＱ】"]
[null,null,null,"https://view.officeapps.live.com/op/view.aspx?src=https%3A%2F%2Fwww.pref.ibaraki.jp%2Fdoboku%2Fkanri%2Fkensetsu%2Fdocuments%2Ffaq20220929.xlsx&wdOrigin=BROWSELINK"]
[null,null,null,"【県共同受付センター】"]
[null,null,null,"電話：",null,"０３－５４３５－５５８８"]
[null,null,null,"メールアドレス：",null,"center222.bpo.fm@hitachi-systems.com"]
[]
[null,"手順の詳細を以下に示します。"]
[]
["手順１","「県内」シートで必要な入力を行います。"]
[]
[]
[]
[]
[]
[]
[]
[]
[]
[]
[]
[]
[]
[]
[]
[]
[]
[]
[]
[]
[]
[]
[]
[]
[]
[]
[]
[]
[]
[]
[]
[]
[]
[]
[]
[]
[]
[]
[]
[]
[]
[]
[]
[]
[]
[]
[]
[]
[]
[]
[]
[]
[]
[]
[]
[]
[]
[]
[]
[]
[]
[]
[]
[]
[]
[]
[]
[]
[]
[]
[]
[]
[]
[]
[]
[]
[]
[]
[]
[]
[]
[]
[]
[]
[]
[]
[]
[]
[]
[]
[]
[]
[]
[]
[]
[]
[]
[]
["手順２","「表紙」シートで「項目チェック及び申請」ボタンをクリックし、入力内容が正しいかチェックします。"]
[]
[]
[]
[]
[]
[]
[]
[]
[]
[]
[]
[]
[]
[]
[]
[]
[]
[]
[]
[]
[]
[]
[]
[]
[]
[]
[]
[]
[]
[]
[]
[]
[]
[]
[]
[]
["手順３","手順２のチェックの結果、エラーがあった場合は、エラーに該当する項目を修正します。"]
[]
[]
[]
[]
[]
[]
[]
[]
[]
[]
[]
[]
[]
[]
[]
[]
[]
[]
[]
[]
[]
[]
[]
[]
[]
[]
[]
[]
[]
[]
[]
[]
[]
[]
[]
[]
[]
[]
["手順４","「提出する書類」に表示された必要資料を準備し、確認を行います。"]
[]
[]
[]
[]
[]
[]
[]
[]
[]
[]
[]
[]
[]
[]
[]
[]
[]
[]
[]
[]
[]
[]
[]
[]
[]
[]
[]
[]
[]
[]
[]
[]
[]
[]
[]
[]
[]
[]
[]
[]
[]
[]
[]
[]
[]
[]
[]
[]
[]
[]
[]
[]
[]
[]
[]
[]
[]
[]
[]
[]
[]
[]
[]
[]
[]
[]
[]
[]
[]
[]
["手順５","手順２のチェックの結果、判定が青色で「可能」と表示されていることを確認します。"]
[]
[]
[]
[]
[]
[]
[]
[]
[]
[]
[]
[]
[]
[]
[]
[]
[]
[]
[]
[]
[]
[]
[]
[]
[]
[]
[]
[]
[]
[]
[]
[]
[]
[]
[]
[]
["手順６","「表紙」シートと「県内」シートを印刷します。"]
[]
[null,"判定が「可能」であることを確認した後に「表紙」シートと「県内」シートの印刷を行います。"]
[]
[null,"「表紙」シートの画面右上の下記「印刷」ボタンをクリックし、印刷して下さい。"]
[null,"（「印刷」ボタンをクリックすることにより「表紙」シートと「県内」シートが印刷されます）"]
[]
[]
[]
[]
[null,"もし「印刷」ボタンで印刷できない場合は、下記の手順で印刷して下さい。"]
[]
[]
[]
[]
[]
[]
[]
[]
[]
[]
[]
[]
[]
[]
[]
[]
[]
[]
[]
[]
[]
[]
[]
[]
[]
[]
[]
[]
[]
[]
[]
[]
[]
[]
[]
[]
[]
[]
[]
[]
[]
[]
[]
[]
[]
[]
[]
[]
[]
[]
[]
[]
[]
[]
[]
[]
[]
[]
[]
[]
[]
[]
[]
[]
[]
[]
[]
[]
[]
[]
[]
[]
[]
[]
[]
[]
[]
[]
[]
[]
[]
[]
[]
[]
[]
[]
[]
[]
[]
[]
[]
[]
[]
[]
[]
[]
[]
[]
[]
[]
[]
[]
[]
[]
[]
[]
[]
[]
[]
[]
[]
[]
[]
[]
[]
[]
[]
[]
[]
[]
[]
[]
[]
[]
[]
[]
[]
[]
[]
[]
[]
[]
[]
[]
[]
[]
[]
[]
[]
[]
[]
[]
[]
[]
[]
[]
[]
[]
[]
[]
[]
[]
[]
[]
[]
[]
[]
[]
[]
["以上"]

{"sheet":"表紙","index":1,"n_rows":66,"n_cols":26,"rows_kept":66,"cut":false,"hidden":false,"merged":[[54,3,54,21],[55,3,55,21],[56,3,56,21],[65,3,65,21],[57,3,57,21],[58,3,58,21],[59,3,59,21],[61,3,61,21],[62,3,62,21],[63,3,63,21],[60,3,60,21],[64,3,64,21],[51,3,51,7],[49,9,49,10],[24,16,26,26],[48,16,48,17],[48,3,48,4],[48,9,48,11],[48,13,48,14],[23,16,23,26],[23,12,23,14],[46,14,46,15],[46,9,46,10],[45,8,45,10],[46,12,46,13],[46,18,46,19],[46,20,46,21],[45,11,45,21],[31,3,31,20],[33,3,33,20],[46,16,46,17],[24,3,26,10],[24,12,26,14]]}
[null,"様式第６号（表紙）",null,null,null,null,null,null,null,null,null,null,null,null,null,null,{"$f":"県内!AH1","v":"Ver01-02"}]
[]
[null,"本EXCELは、様式第6号（建設工事入札参加資格調書（その１　県内業者用）)の申請書類を作成するものです。"]
[]
[]
[]
[]
[]
[null,"入力漏れのチェック","「県内」シートに記載されている申請項目の入力がすべて完了しましたら、「項目チェック"]
[null,null,"及び申請」ボタンを押下し申請書類の出力をしてください。"]
[null,null,"その際、記入漏れチェックを行います。エラーメッセージが出力されましたら、「県内」シート"]
[null,null,"の申請内容を確認の上申請書類の修正を行ってください。"]
[null,null,"提出する書類が手元にあることを確認の上チェックを行って下さい。"]
[null,null,"※入力チェックする際は、マクロを有効にしてから実施願います。"]
[]
[null,"申請書の印刷","入力チェック漏れが完了しますと、「提出の可否」の判定欄が「可能」の表示に代わります。"]
[null,null,"判定欄が可能と表示されたら、申請書類を印刷し、提出願います。"]
[]
[null,"申請書提出方法","出力された書類は以下の並びでホチキス止めして提出願います。"]
[null,null,null,"様式第６号（表紙）"]
[null,null,null,"様式第６号（建設工事入札参加資格調書（その１　県内業者用）)"]
[]
[]
[null,null,null,null,null,null,null,null,null,null,null,null,"判定",null,null,null,"事務局使用欄"]
[null,null,null,"提出の可否",null,null,null,null,null,null,null,null,"不可"]
[]
[]
[]
[]
[null,null,null,null,null,null,null,null,null,null,null,null,null,null,null,null,null,null,null,null,null,null,null,null,null,"センターチェック欄"]
[null,null,null,null,null,null,null,null,null,null,null,null,null,null,null,null,null,null,null,null,null,null,null,null,null,"↓"]
[null,"商号又は名称",null,{"$f":"IF(県内!$I$3=\"\",\"\",県内!$I$3)","v":""}]
[]
[null,"代表者氏名",null,{"$f":"IF(県内!$I$4=\"\",\"\",県内!$I$4)","v":""}]
[]
[]
[null,"入力確認欄"]
[null,"大臣・知事コード","①",{"$f":"IF(県内!$I$5=\"\",\"\",県内!$I$5)","v":""},{"$f":"IF(県内!$J$5=\"\",\"\",県内!$J$5)","v":""},"－",{"$f":"IF(県内!$L$5=\"\",\"\",県内!$L$5)","v":""},{"$f":"IF(県内!$M$5=\"\",\"\",県内!$M$5)","v":""},{"$f":"IF(県内!$N$5=\"\",\"\",県内!$N$5)","v":""},{"$f":"IF(県内!$O$5=\"\",\"\",県内!$O$5)","v":""},{"$f":"IF(県内!$P$5=\"\",\"\",県内!$P$5)","v":""},{"$f":"IF(県内!$Q$5=\"\",\"\",県内!$Q$5)","v":""},{"$f":"IF(県内!$I$6=\"\",\"\",県内!$I$6)","v":""},{"$f":"IF(県内!$J$6=\"\",\"\",県内!$J$6)","v":""},"－",{"$f":"IF(県内!$L$6=\"\",\"\",県内!$L$6)","v":""},{"$f":"IF(県内!$M$6=\"\",\"\",県内!$M$6)","v":""},{"$f":"IF(県内!$N$6=\"\",\"\",県内!$N$6)","v":""},{"$f":"IF(県内!$O$6=\"\",\"\",県内!$O$6)","v":""},{"$f":"IF(県内!$P$6=\"\",\"\",県内!$P$6)","v":""},{"$f":"IF(県内!$Q$6=\"\",\"\",県内!$Q$6)","v":""}]
[]
[null,"審査基準日","②",{"$f":"IF(県内!$I$7=\"\",\"\",県内!$I$7)","v":""},{"$f":"IF(県内!$J$7=\"\",\"\",県内!$J$7)","v":""},{"$f":"IF(県内!$K$7=\"\",\"\",県内!$K$7)","v":"年"},{"$f":"IF(県内!$L$7=\"\",\"\",県内!$L$7)","v":""},{"$f":"IF(県内!$M$7=\"\",\"\",県内!$M$7)","v":""},{"$f":"IF(県内!$N$7=\"\",\"\",県内!$N$7)","v":"月"},{"$f":"IF(県内!$O$7=\"\",\"\",県内!$O$7)","v":""},{"$f":"IF(県内!$P$7=\"\",\"\",県内!$P$7)","v":""},{"$f":"IF(県内!$Q$7=\"\",\"\",県内!$Q$7)","v":"日"}]
[]
[null,"主たる営業所の電話番号","③",{"$f":"IF(県内!$I$8=\"\",\"\",県内!$I$8)","v":""},{"$f":"IF(県内!$J$8=\"\",\"\",県内!$J$8)","v":""},{"$f":"IF(県内!$K$8=\"\",\"\",県内!$K$8)","v":""},{"$f":"IF(県内!$L$8=\"\",\"\",県内!$L$8)","v":""},{"$f":"IF(県内!$M$8=\"\",\"\",県内!$M$8)","v":""},{"$f":"IF(県内!$N$8=\"\",\"\",県内!$N$8)","v":""},{"$f":"IF(県内!$O$8=\"\",\"\",県内!$O$8)","v":""},{"$f":"IF(県内!$P$8=\"\",\"\",県内!$P$8)","v":""},{"$f":"IF(県内!$Q$8=\"\",\"\",県内!$Q$8)","v":""},{"$f":"IF(県内!$R$8=\"\",\"\",県内!$R$8)","v":""},{"$f":"IF(県内!$S$8=\"\",\"\",県内!$S$8)","v":""},{"$f":"IF(県内!$T$8=\"\",\"\",県内!$T$8)","v":""},{"$f":"IF(県内!$U$8=\"\",\"\",県内!$U$8)","v":""}]
[]
[null,"法人番号","④",{"$f":"IF(県内!$I$11=\"\",\"\",県内!$I$11)","v":""},{"$f":"IF(県内!$J$11=\"\",\"\",県内!$J$11)","v":""},{"$f":"IF(県内!$K$11=\"\",\"\",県内!$K$11)","v":""},{"$f":"IF(県内!$L$11=\"\",\"\",県内!$L$11)","v":""},{"$f":"IF(県内!$M$11=\"\",\"\",県内!$M$11)","v":""},{"$f":"IF(県内!$N$11=\"\",\"\",県内!$N$11)","v":""},{"$f":"IF(県内!$O$11=\"\",\"\",県内!$O$11)","v":""},{"$f":"IF(県内!$P$11=\"\",\"\",県内!$P$11)","v":""},{"$f":"IF(県内!$Q$11=\"\",\"\",県内!$Q$11)","v":""},{"$f":"IF(県内!$R$11=\"\",\"\",県内!$R$11)","v":""},{"$f":"IF(県内!$S$11=\"\",\"\",県内!$S$11)","v":""},{"$f":"IF(県内!$T$11=\"\",\"\",県内!$T$11)","v":""},{"$f":"IF(県内!$U$11=\"\",\"\",県内!$U$11)","v":""}]
[]
[null,"申請項目",null,"⑤","⑥","⑦","⑧","⑨","⑩",null,null,"⑪"]
[null,null,null,{"$f":"IF(県内!$I$14=\"\",\"\",県内!$I$14)","v":""},{"$f":"IF(県内!$I$16=\"\",\"\",県内!$I$16)","v":""},{"$f":"IF(県内!$I$18=\"\",\"\",県内!$I$18)","v":""},{"$f":"IF(県内!$I$20=\"\",\"\",県内!$I$20)","v":""},{"$f":"IF(県内!$I$24=\"\",\"\",県内!$I$24)","v":""},{"$f":"IF(県内!$I$28=\"\",\"\",県内!$I$28)","v":""},{"$f":"IF(県内!$I$29=\"\",\"\",県内!$I$29)","v":""},null,{"$f":"IF(県内!$I$31=\"\",\"\",県内!$I$31)","v":""},{"$f":"IF(県内!$I$32=\"\",\"\",県内!$I$32)","v":""},null,{"$f":"IF(県内!$I$33=\"\",\"\",県内!$I$33)","v":""},null,{"$f":"IF(県内!$I$34=\"\",\"\",県内!$I$34)","v":""},null,{"$f":"IF(県内!$I$35=\"\",\"\",県内!$I$35)","v":""},null,{"$f":"IF(県内!$I$36=\"\",\"\",県内!$I$36)","v":""}]
[]
[null,null,null,"⑫",null,"⑬","⑭","⑮","⑯","⑰",null,null,"⑱","⑲",null,"⑳","㉑",null,"㉒"]
[null,null,null,{"$f":"IF(県内!$I$38=\"\",\"\",県内!$I$38)","v":""},{"$f":"IF(県内!$I$39=\"\",\"\",県内!$I$39)","v":""},{"$f":"IF(県内!$I$43=\"\",\"\",県内!$I$43)","v":""},{"$f":"IF(県内!$I$45=\"\",\"\",県内!$I$45)","v":""},{"$f":"IF(県内!$I$47=\"\",\"\",県内!$I$47)","v":""},{"$f":"IF(県内!$I$49=\"\",\"\",県内!$I$49)","v":""},{"$f":"IF(県内!$I$52=\"\",\"\",県内!$I$52)","v":""},null,{"$f":"IF(県内!$I$53=\"\",\"\",県内!$I$53)","v":""},{"$f":"IF(県内!$I$56=\"\",\"\",県内!$I$56)","v":""},{"$f":"IF(県内!$I$59=\"\",\"\",県内!$I$59)","v":""},{"$f":"IF(県内!$I$60=\"\",\"\",県内!$I$60)","v":""},{"$f":"IF(県内!$I$62=\"\",\"\",県内!$I$62)","v":""},{"$f":"IF(県内!$I$65=\"\",\"\",県内!$I$65)","v":""},{"$f":"IF(県内!$I$66=\"\",\"\",県内!$I$66)","v":""},{"$f":"IF(県内!$I$69=\"\",\"\",県内!$I$69)","v":""}]
[]
[null,null,null,"㉓"]
[null,null,null,{"$f":"IF(県内!$I$72=\"\",\"\",県内!$I$72)","v":""},{"$f":"IF(県内!$I$73=\"\",\"\",県内!$I$73)","v":""},{"$f":"IF(県内!$I$74=\"\",\"\",県内!$I$74)","v":""},{"$f":"IF(県内!$I$75=\"\",\"\",県内!$I$75)","v":""},{"$f":"IF(県内!$I$76=\"\",\"\",県内!$I$76)","v":""},null,null,null,null,null,null,null,null,null,null,null,null,null,null,null,"提出書類のチェック必須"]
[null,null,null,null,null,null,null,null,null,null,null,null,null,null,null,null,null,null,null,null,null,null,null,"↓"]
[null,"提出する書類",8,"法定外労災保険への加入が確認できる書類"]
[null,null,9,"調書（様式第6号の3）及び対象技術者の資格証および常勤性が確認できる書類"]
[null,null,10,"(一社)全国土木施工管理技士会連合会が発行する証明書及び対象技術者の常勤性の確認書類"]
[null,null,11,"建築CPD運営会議が発行する証明書（様式3-4内訳付様式）及び対象技術者の常勤性の確認書類"]
[null,null,12,"インターン受入、就職説明会等を実施したことが確認できる資料"]
[null,null,13,"建設業労働災害防止協会加入証明書"]
[null,null,14,"防災協定の締結状況を証明する書類"]
[null,null,15,"女性・若年技術職員状況調書（調書第６号の５）及び直近の経営事項審査で茨城県土木部監理課の確認印を受けた技術職員名簿の写し"]
[null,null,16,"外国人材雇用状況調書（様式第６号の６）及び資格者証及び常勤性の確認書類"]
[null,null,17,"障害者雇用状況調書（様式第6号の7）及び障害者の雇用又は常勤性の確認書類"]
[null,null,18,"施工実績調書（様式第６号の８）及び契約書又はCORINSの写し"]
[null,null,19,"茨城県労務士会が発行する「労働条件審査報告と今後の取り組み・提案事項」の写し"]

{"sheet":"県内","index":2,"n_rows":76,"n_cols":42,"rows_kept":76,"cut":false,"hidden":false,"merged":[[20,9,20,27],[21,9,21,27],[68,1,69,7],[68,9,68,14],[58,31,59,41],[51,28,53,41],[52,9,52,23],[57,0,57,12],[59,9,59,21],[61,1,62,7],[61,9,61,14],[64,1,66,7],[64,9,64,26],[65,9,65,26],[58,1,59,7],[58,9,58,14],[37,1,38,7],[38,9,38,13],[38,28,40,41],[46,1,46,7],[46,28,46,41],[44,9,44,27],[44,28,44,41],[30,28,34,41],[71,0,75,0],[71,1,75,7],[71,9,71,20],[71,28,75,41],[72,9,72,20],[73,9,73,20],[74,9,74,20],[75,9,75,20],[55,1,55,7],[55,9,55,13],[55,28,55,41],[51,1,51,7],[48,1,49,7],[48,28,49,41],[44,1,44,7],[10,1,11,7],[42,28,42,41],[27,1,28,7],[27,9,27,13],[27,28,28,41],[28,9,28,13],[28,16,28,24],[30,1,35,7],[30,9,30,13],[31,9,31,15],[31,16,33,24],[32,9,32,15],[33,9,33,15],[35,9,35,15],[42,1,42,7],[42,9,42,13],[23,28,24,41],[13,1,14,7],[13,9,13,20],[13,28,16,41],[14,9,14,20],[15,1,16,7],[15,9,15,20],[16,9,16,20],[17,1,18,7],[17,9,17,20],[18,9,18,20],[23,1,24,7],[23,9,23,13],[19,1,21,7],[19,28,21,41],[19,9,19,26],[10,28,11,41],[6,28,6,41],[2,1,2,7],[3,1,3,7],[4,1,4,7],[4,28,4,41],[2,8,2,20],[3,8,3,20],[5,1,5,6],[5,28,5,41],[6,1,6,7],[7,1,7,7],[9,41,9,42],[1,28,2,30],[1,31,2,42],[11,9,11,26]]}
["様式第6号　　　　　　　　　　　　　　　　　　　　　　　　　　　　　　　　　　　　　　　　　建設工事入札参加資格調書（その１　県内業者用）",null,null,null,null,null,null,null,null,null,null,null,null,null,null,null,null,null,null,null,null,null,null,null,null,null,null,null,null,null,null,null,null,"Ver01-02"]
[null,null,null,null,null,null,null,null,null,null,null,null,null,null,null,null,null,null,null,null,null,null,null,null,null,null,null,null,"行政庁記入欄"]
[null,"商号又は名称"]
[null,"代表者氏名"]
[1,"大臣・知事コード",null,null,null,null,null,null,null,null,"－",null,null,null,null,null,null,null,null,null,null,null,null,null,null,null,null,null,"※大臣は００－６桁の許可番号、\n　 茨城県知事は０８－６桁の許可番号を記入"]
[null,"取消前の大臣・知事コード\n（該当者のみ記入）",null,null,null,null,null,null,null,null,"－",null,null,null,null,null,null,null,null,null,null,null,null,null,null,null,null,null,"※Ｈ31・32またはR3・4入札参加資格を持っていて許可取り消しにより、資格を取り消された場合は、取消前の許可番号を記入"]
[2,"審査基準日",null,null,null,null,null,null,null,null,"年",null,null,"月",null,null,"日",null,null,null,null,null,null,null,null,null,null,null,"※経営事項審査の審査基準日を記入（和暦で元号表示なし）\n数字で入力、何も入力がない場合は「0」を入力（空白は入力不可）"]
[3,"主たる営業所の電話番号",null,null,null,null,null,null,null,null,null,null,null,null,null,null,null,null,null,null,null,null,null,null,null,null,null,null,"※(例)",null,"０","２","９","－","３","０","１","－","４","３","３","４"]
[]
[null,"４以下を記入するときは、必ず右側の確認欄で、調書や確認書類に漏れがないか確認してください。",null,null,null,null,null,null,null,null,null,null,null,null,null,null,null,null,null,null,null,null,null,null,null,null,null,null,"【添付する調書・確認書類】",null,null,null,null,null,null,null,null,null,null,null,null,"行政庁\n確認欄"]
[4,"法人番号（13桁）",null,null,null,null,null,null,{"$f":"IF(V11=12,AA11,\"\")","v":""},null,null,null,null,null,null,null,null,null,null,null,null,{"$f":"LEN(J11)+LEN(K11)+LEN(L11)+LEN(M11)+LEN(N11)+LEN(O11)+LEN(P11)+LEN(Q11)+LEN(R11)+LEN(S11)+LEN(T11)+LEN(U11)","v":0},{"$f":"U11+S11+Q11+O11+M11+K11","v":0},{"$f":"T11+R11+P11+N11+L11+J11","v":0},{"$f":"X11*2+W11","v":0},{"$f":"MOD(Y11,9)","v":0},{"$f":"9-Z11","v":9},null,"法人番号について\n※個人事業主は記載不要\n※国税庁長官が発行する法人番号指定通知書の写し、\n　　または、国税庁法人番号公表サイトで確認してください。\n※確認資料の添付は不要"]
[null,null,null,null,null,null,null,null,null,"※先頭から２～１３桁目の１２桁を入力して下さい。先頭１桁目のチェックデジットは\n　 自動で計算し設定されます。"]
[null,"5以下を電子データで入力するときは、必ず表示が背景色なしになることを確認してください。"]
[5,"健康保険の加入状況",null,null,null,null,null,null,null,"１：加入（審査基準日）　２：適用除外",null,null,null,null,null,null,null,null,null,null,null,null,null,null,null,null,null,null,"健康保険、厚生年金保険、雇用保険の加入状況について\n※経審の結果通知書で「加入」、「適用除外」が\n　確認できない場合、申請は受付けません。\n\n※１加入、２適用除外の場合とも確認書類の添付は不要\n　　（別に提出している経審の結果通知書で確認します。）"]
[]
[6,"厚生年金保険の加入状況",null,null,null,null,null,null,null,"１：加入（審査基準日）　２：適用除外"]
[]
[7,"雇用保険の加入状況",null,null,null,null,null,null,null,"１：加入（審査基準日）　２：適用除外"]
[]
[8,"法定外の労働災害補償保険の加入状況\n",null,null,null,null,null,null,null,"０：未加入　１：総合評定値通知書により確認　２：法定外労災保険の加入資料により確認（完了票の場合も選択）",null,null,null,null,null,null,null,null,null,null,null,null,null,null,null,null,null,null,"※２の場合は、\n　・法定外労災保険への加入が確認できる書類\n　（法定外労働災害補償制度加入証明書、保険契約証明書、保険証券等の写し）"]
[null,null,null,null,null,null,null,null,null,"※茨城県、水戸市、龍ケ崎市、常陸太田市、北茨城市、牛久市及び大子町は、法定外労災に未加入の場合、申請できません。"]
[]
[]
[9,"舗装工事特別技術職員（茨城県の舗装Ａ等級を希望する場合のみ）",null,null,null,null,null,null,null,"０：いない　１：いる",null,null,null,null,null,null,null,null,null,null,null,null,null,null,null,null,null,null,"※１の場合は、\n　・調書（様式第6号の3）\n　・対象技術者の資格者証\n　・対象技術者の常勤性の確認書類\n　  標準報酬決定通知書の写し等　（詳細は下記手引き参照）\n　　　　令和５・６年度建設工事入札参加資格審査申請の手引きの\n　　　　「9 舗装工事特別技術職員」"]
[]
[]
[]
[10,"CPDSの一定の学習履歴を有している職員の在籍及び取得単位",null,null,null,null,null,null,null,"０：いない　１：いる",null,null,null,null,null,null,null,null,null,null,null,null,null,null,null,null,null,null,"※１の場合は、\n　・(一社)全国土木施工管理技士会連合会が発行する証明書\n　・対象技術者の常勤性の確認書類\n　　標準報酬決定通知書の写し等　（詳細は下記手引き参照）\n　　　　令和５・６年度建設工事入札参加資格審査申請の手引きの\n　　　　「10 CPDS の一定の学習履歴を有している職員の在籍及び\n　　　　取得単位」"]
[null,null,null,null,null,null,null,null,null,"ユニット",null,null,null,null,null,null,"※「１：いる」を選択した場合のみ記載\n　技術者が取得しているユニット数の合計\n"]
[]
[11,"建築CPDの一定の学習履歴を有している職員の在籍及び取得単位",null,null,null,null,null,null,null,"０：いない　１：いる",null,null,null,null,null,null,null,null,null,null,null,null,null,null,null,null,null,null,"※１の場合は、\n　・建築CPD運営会議が発行する証明書（様式3-4内訳付様式）\n　・対象技術者の常勤性の確認書類\n　　標準報酬決定通知書の写し等　（詳細は下記手引き参照）\n　　　　令和５・６年度建設工事入札参加資格審査申請の手引きの\n　　　　「11 建築CPDの一定の学習履歴を有している職員の\n　　　　在籍及び取得単位」"]
[null,null,null,null,null,null,null,null,null,"時間（建築士）",null,null,null,null,null,null,"※「１：いる」を選択した場合のみ記載\n　技術者の資格ごとの認定時間の合計を\n　添付する証明書から足し上げて記載する\n　該当のない資格の認定時間は「０」を記入する"]
[null,null,null,null,null,null,null,null,null,"時間（建築施工管理技士）"]
[null,null,null,null,null,null,null,null,null,"時間（建築設備士）"]
[null,null,null,null,null,null,null,null,null,"時間（電気工事施工管理技士）"]
[null,null,null,null,null,null,null,null,null,"時間（管工事施工管理技士）"]
[]
[12,"入職を促す取組による入職人数\n\n　インターン受入、就職説明会等の\n　　取組みの実施",null,null,null,null,null,null,null,"人","３５歳未満の技術職員（２人以上の場合は「２」を記入）"]
[null,null,null,null,null,null,null,null,null,"０：なし　１：あり",null,null,null,null,null,null,"※１人以上を記入した場合のみ記載",null,null,null,null,null,null,null,null,null,null,null,"※１の場合は、\n　・インターン受入、就職説明会等を実施したことが確認できる資料\n　　例：チラシ、HPの画面、説明会の配布資料等で会社名が\n　　　　確認できるもの）"]
[]
[]
[]
[13,"建災防の加入状況",null,null,null,null,null,null,null,"０：なし　１：あり",null,null,null,null,null,null,null,null,null,null,null,null,null,null,null,null,null,null,"※１の場合は、「建設業労働災害防止協会加入証明書」"]
[]
[14,"防災協定の締結の有無",null,null,null,null,null,null,null,"０：なし　１：茨城県と締結　２：茨城県以外",null,null,null,null,null,null,null,null,null,null,null,null,null,null,null,null,null,null,"※１の場合のみ、 「所属団体が発行する証明書」又は\n　県と直接協定を締結している場合は、「防災協定書の写し」"]
[]
[15,"女性・若年技術職員の雇用状況",null,null,null,null,null,null,null,"人","女性又は３５歳未満の技術職員（４人以上の場合は「４」を記入）",null,null,null,null,null,null,null,null,null,null,null,null,null,null,null,null,null,"※１人以上を記入した場合は、\n・女性・若年技術職員状況調書（調書第６号の５）\n・直近の経営事項審査で茨城県土木部監理課の確認印を受けた技術職員名簿の写し（紙媒体）\n"]
[]
[16,"外国人材の雇用状況\n（特定技能1号若しくは2号又は技術・人文知識・国際業務の在留資格を有する者を常勤の職員として雇用している場合）",null,null,null,null,null,null,null,"０：雇用していない　１：雇用している",null,null,null,null,null,null,null,null,null,null,null,null,null,null,null,null,null,null,"※１の場合は、\n　・様式第6号の6（外国人材雇用状況調書）\n　・資格者証（在留カード、在留資格認定証明書の写し等）\n　・常勤性の確認資料（健康保険、厚生年金保険被保険者標準報酬決定通知書（社会保険事務所の受付日が申請日直近のもの）の写し等）"]
[]
[]
[17,"障害者雇用人数\n（該当無しの場合は「０」を記入）",null,null,null,null,null,null,null,"人",null,null,null,null,null,null,null,null,null,null,null,null,null,null,null,null,null,null,"※人数を記載する場合は、\n　・障害者雇用状況調書（様式第6号の7）及び障害者の雇用又は常勤性の確認書類及び下記資料\n\n　〇障害者雇用状況報告書の提出義務がある場合\n　　・障害者雇用状況報告書の写し\n　〇障害者雇用状況報告書の提出義務がない場合\n　　・障害者に係る手帳の写し\n　　・対象技術者の常勤性の確認書類\n　　　標準報酬決定通知書の写し等　（詳細は下記手引き参照）\n　　　　令和５・６年度建設工事入札参加資格審査申請の手引きの\n　　　「17 障害者雇用人数 」"]
[null,null,null,null,null,null,null,null,null,"茨城県障害者雇用優良企業認定を受けている場合は、「２」を記載。\n※資料の添付は不要"]
[]
[]
[18,"ICT施工の実績",null,null,null,null,null,null,null,"０：なし　１：あり",null,null,null,null,null,null,null,null,null,null,null,null,null,null,null,null,null,null,"※１の場合は、\n　・施工実績調書（様式第６号の８）\n　・契約書の写し又はCORINSの写し （詳細は下記手引き参照）\n　　　　令和５・６年度建設工事入札参加資格審査申請の手引きの\n　　　　「18 ＩＣＴ施工の実績」"]
[]
["19～22はいずれか１項目を選んで記入すること"]
[19,"労働条件審査の受審状況\n※茨城県社会保険労務士会が実施する労働条件審査の受審状況",null,null,null,null,null,null,null,"０：受審なし　１：受審あり",null,null,null,null,null,null,null,null,null,null,null,null,null,null,null,null,null,null,null,null,null,"※１の場合は、\n　・茨城県労務士会が発行する「労働条件審査報告と今後の取り組み・提案事項」の写し"]
[null,null,null,null,null,null,null,null,null,"１：審査適合企業　２：改善計画実施企業　３：審査受審企業",null,null,null,null,null,null,null,null,null,null,null,null,"※「１：受審あり」を選択した場合のみ記載"]
[]
[20,"健康経営優良法人の認定状況\n※日本健康会議により健康経営優良法人の認定を受けている場合",null,null,null,null,null,null,null,"０：認定なし　１：認定あり",null,null,null,null,null,null,null,null,null,null,null,null,null,null,null,null,null,null,null,null,null,"※資料の添付は不要"]
[]
[]
[21,"働き方改革優良（推進）企業の認定状況及び週休２日又は４週８休による労働環境改善\n※茨城県産業戦略部労働政策課が実施する働き方改革優良（推進）企業の認定状況",null,null,null,null,null,null,null,"０：認定なし　１：働き方改革優良企業認定　２：働き方改革推進企業認定",null,null,null,null,null,null,null,null,null,null,null,null,null,null,null,null,null,null,null,null,null,"※資料の添付は不要"]
[null,null,null,null,null,null,null,null,null,"０：労働環境改善なし　１：週休２日又は４週８休による労働環境改善"]
[]
[]
[22,"いばらき健康経営推進事業所の認定状況\n※茨城県保健医療部健康推進課が実施するいばらき健康経営推進事業所の認定状況",null,null,null,null,null,null,null,"０：認定なし　１：認定あり",null,null,null,null,null,null,null,null,null,null,null,null,null,null,null,null,null,null,null,null,null,"※資料の添付は不要"]
[]
[]
[23,"残留措置制度の希望\n(茨城県の資格を申請する場合のみ)\n\n(注意)\n「１希望する」を選択した場合、格付等級が前回（令和3・4年度）より上位の等級になる場合でも前年度の等級に残留することとなります。",null,null,null,null,null,null,null,"０：希望しない　１：希望する　（土木の格付残留）",null,null,null,null,null,null,null,null,null,null,null,null,null,null,null,null,null,null,"※資料の添付は不要"]
[null,null,null,null,null,null,null,null,null,"０：希望しない　１：希望する　（建築の格付残留）"]
[null,null,null,null,null,null,null,null,null,"０：希望しない　１：希望する　（電気の格付残留）"]
[null,null,null,null,null,null,null,null,null,"０：希望しない　１：希望する　（管の格付残留）"]
[null,null,null,null,null,null,null,null,null,"０：希望しない　１：希望する　（舗装の格付残留）"]